fUST/lending_fUST_20250819
["ID","MTS","AMOUNT","RATE_DAILY","PERIOD"]
[380132615,1755565853365,-2895.54,0.00019725,2]
[380132616,1755565853374,-2895.54,0.00019725,2]
[380132617,1755565853384,-2895.54,0.00019725,2]
[380132618,1755565853397,-387.446965,0.00019725,2]
[380132619,1755565853406,-151.0,0.00019725,2]
[380132620,1755565853414,-198.0,0.00019726,2]
[380132621,1755565853423,-500.0,0.00019726,2]
[380132622,1755565853433,-187.02015005,0.00019726,2]
[380132623,1755565853442,-151.0,0.00019726,2]
[380132624,1755565853451,-151.0,0.00019726,2]
[380132625,1755565853461,-151.0,0.00019726,2]
[380132626,1755565853470,-151.0,0.00019726,2]
[380132627,1755565853480,-151.0,0.00019726,2]
[380132628,1755565853489,-480.0,0.00019726,2]
[380132629,1755565853499,-480.0,0.00019726,2]
[380132630,1755565853508,-480.0,0.00019726,2]
[380132631,1755565853517,-480.0,0.00019726,2]
[380132632,1755565853526,-480.0,0.00019726,2]
[380132633,1755565853535,-186.962021,0.00019726,2]
[380132634,1755565853545,-186.962021,0.00019726,2]
[380132635,1755565853555,-186.962021,0.00019726,2]
[380132636,1755565853564,-186.962021,0.00019726,2]
[380132637,1755565853574,-186.962021,0.00019726,2]
[380132638,1755565853583,-186.962021,0.00019726,2]
[380132639,1755565853592,-480.0,0.00019726,2]
[380132640,1755565853601,-151.0,0.00019726,2]
[380132641,1755565853610,-151.0,0.00019726,2]
[380132642,1755565853619,-151.0,0.00019726,2]
[380132643,1755565853628,-151.0,0.00019726,2]
[380132644,1755565853637,-480.0,0.00019726,2]
[380132645,1755565853647,-480.0,0.00019726,2]
[380132646,1755565853656,-151.0,0.00019726,2]
[380132647,1755565853665,-151.811457,0.00019726,2]
[380132648,1755565853674,-496.65,0.00019726,2]
[380132649,1755565853683,-480.0,0.00019726,2]
[380132650,1755565853692,-480.0,0.00019726,2]
[380132651,1755565853701,-480.0,0.00019726,2]
[380132652,1755565853711,-151.0,0.00019726,2]
[380132653,1755565853720,-151.0,0.00019726,2]
[380132654,1755565853729,-151.0,0.00019726,2]
[380132655,1755565853739,-480.0,0.00019726,2]
[380132656,1755565853748,-151.0,0.00019726,2]
[380132657,1755565853757,-151.770029,0.00019726,2]
[380132658,1755565853766,-480.0,0.00019726,2]
[380132659,1755565853775,-464.02881232,0.00019726,2]
[380132660,1755565853784,-461.28378269,0.00019726,2]
[380132661,1755565853794,-480.0,0.00019726,2]
[380132662,1755565853803,-480.0,0.00019726,2]
[380132663,1755565853812,-242.025535,0.00019726,2]
[380132664,1755565853821,-480.0,0.00019726,2]
[380132665,1755565853831,-480.0,0.00019726,2]
[380132666,1755565853840,-634.83,0.00019726,2]
[380132667,1755565853849,-480.0,0.00019726,2]
[380132668,1755565853858,-480.0,0.00019726,2]
[380132669,1755565853867,-480.0,0.00019726,2]
[380132670,1755565853876,-480.0,0.00019726,2]
[380132671,1755565853885,-480.0,0.00019726,2]
[380132672,1755565853894,-480.0,0.00019726,2]
[380132673,1755565853904,-3258.45,0.00019726,2]
[380132674,1755565853913,-480.0,0.00019726,2]
[380132675,1755565853923,-589.94,0.00019726,2]
[380132676,1755565853932,-480.0,0.00019726,2]
[380132677,1755565853941,-480.0,0.00019726,2]
[380132678,1755565853951,-151.0,0.00019726,2]
[380132679,1755565853960,-151.0,0.00019726,2]
[380132680,1755565853970,-480.0,0.00019726,2]
[380132681,1755565853979,-480.0,0.00019726,2]
[380132682,1755565853989,-480.0,0.00019726,2]
[380132683,1755565853998,-480.0,0.00019726,2]
[380132684,1755565854007,-480.0,0.00019726,2]
[380132685,1755565854017,-480.0,0.00019726,2]
[380132686,1755565854027,-480.0,0.00019726,2]
[380132687,1755565854036,-197.819997,0.00019726,2]
[380132688,1755565854045,-197.819997,0.00019726,2]
[380132689,1755565854054,-728.12,0.00019726,2]
[380132690,1755565854064,-197.819997,0.00019726,2]
[380132691,1755565854073,-480.0,0.00019726,2]
[380132692,1755565854082,-197.819997,0.00019726,2]
[380132693,1755565854091,-197.819997,0.00019726,2]
[380132694,1755565854100,-197.819997,0.00019726,2]
[380132695,1755565854110,-527.6,0.00019726,2]
[380132696,1755565854119,-480.0,0.00019726,2]
[380132697,1755565854129,-480.0,0.00019726,2]
[380132698,1755565854139,-484.42,0.00019726,2]
[380132699,1755565854148,-480.0,0.00019726,2]
[380132700,1755565854159,-480.0,0.00019726,2]
[380132701,1755565854168,-151.0,0.00019726,2]
[380132702,1755565854177,-151.0,0.00019726,2]
[380132703,1755565854186,-151.0,0.00019726,2]
[380132704,1755565854196,-639.444324,0.00019726,2]
[380132705,1755565854205,-639.444324,0.00019726,2]
[380132706,1755565854214,-639.444324,0.00019726,2]
[380132707,1755565854223,-639.444324,0.00019726,2]
[380132708,1755565854233,-639.444324,0.00019726,2]
[380132709,1755565854243,-639.444331,0.00019726,2]
[380132710,1755565854253,-977.22,0.00019726,2]
[380132711,1755565854263,-480.0,0.00019726,2]
[380132712,1755565854272,-151.0,0.00019726,2]
[380132713,1755565854281,-151.0,0.00019726,2]
[380132714,1755565854291,-151.0,0.00019726,2]
[380132715,1755565854300,-480.0,0.00019726,2]
[380132716,1755565854309,-480.0,0.00019726,2]
[380132717,1755565854318,-151.0,0.00019726,2]
[380132718,1755565854328,-178.538974,0.00019726,2]
[380132719,1755565854338,-460.0,0.00019726,2]
[380132720,1755565854347,-736.74,0.00019726,2]
[380132721,1755565854357,-480.0,0.00019726,2]
[380132722,1755565854366,-480.0,0.00019726,2]
[380132723,1755565854376,-480.0,0.00019726,2]
[380132724,1755565854386,-435.407089,0.00019726,2]
[380132725,1755565854399,-435.407089,0.00019726,2]
[380132726,1755565854410,-435.407089,0.00019726,2]
[380132727,1755565854421,-435.407095,0.00019726,2]
[380132728,1755565854430,-480.0,0.00019726,2]
[380132729,1755565854440,-151.0,0.00019726,2]
[380132730,1755565854450,-163.725088,0.00019726,2]
[380132731,1755565854459,-480.0,0.00019726,2]
[380132732,1755565854469,-480.0,0.00019726,2]
[380132733,1755565854479,-480.0,0.00019726,2]
[380132734,1755565854488,-2865.4,0.00019726,2]
[380132735,1755565854498,-263.424956,0.00019726,2]
[380132736,1755565854507,-263.424956,0.00019726,2]
[380132737,1755565854517,-263.424956,0.00019726,2]
[380132738,1755565854526,-263.424962,0.00019726,2]
[380132739,1755565854535,-480.0,0.00019726,2]
[380132740,1755565854545,-460.0,0.00019726,2]
[380132741,1755565854555,-480.0,0.00019726,2]
[380132742,1755565854565,-480.0,0.00019726,2]
[380132743,1755565854574,-480.0,0.00019726,2]
[380132744,1755565854583,-480.0,0.00019726,2]
[380132745,1755565854593,-1368.81,0.00019726,2]
[380132746,1755565854603,-480.0,0.00019726,2]
[380132747,1755565854612,-460.0,0.00019726,2]
[380132748,1755565854622,-156.960684,0.00019726,2]
[380132749,1755565854631,-156.960684,0.00019726,2]
[380132750,1755565854640,-176.44117465,0.00019726,2]
[380132751,1755565854650,-156.960684,0.00019726,2]
[380132752,1755565854659,-156.960677,0.00019726,2]
[380132753,1755565854669,-480.0,0.00019726,2]
[380132754,1755565854678,-387.446965,0.00019726,2]
[380132755,1755565854688,-387.446965,0.00019726,2]
[380132756,1755565854698,-480.0,0.00019726,2]
[380132757,1755565854708,-819.01,0.00019726,2]
[380132758,1755565854717,-480.0,0.00019726,2]
[380132759,1755565854727,-387.446965,0.00019726,2]
[380132760,1755565854736,-387.446963,0.00019726,2]
[380132761,1755565854746,-480.0,0.00019726,2]
[380132762,1755565854755,-480.0,0.00019726,2]
[380132763,1755565854765,-480.0,0.00019726,2]
[380132764,1755565854775,-480.0,0.00019726,2]
[380132765,1755565854785,-4419.17,0.00019726,2]
[380132766,1755565854794,-1316.735515,0.00019726,2]
[380132767,1755565854804,-1316.735515,0.00019726,2]
[380132768,1755565854814,-480.0,0.00019726,2]
[380132769,1755565854823,-530.68,0.00019726,2]
[380132770,1755565854833,-460.0,0.00019726,2]
[380132771,1755565854843,-460.0,0.00019726,2]
[380132772,1755565854853,-151.0,0.00019726,2]
[380132773,1755565854862,-151.0,0.00019726,2]
[380132774,1755565854872,-481.94,0.00019726,2]
[380132775,1755565854881,-1316.735515,0.00019726,2]
[380132776,1755565854891,-1316.735524,0.00019726,2]
[380132777,1755565854901,-480.0,0.00019726,2]
[380132778,1755565854911,-480.0,0.00019726,2]
[380132779,1755565854921,-480.0,0.00019726,2]
[380132780,1755565854931,-480.0,0.00019726,2]
[380132781,1755565854941,-1931.66,0.00019726,2]
[380132782,1755565855035,-480.0,0.00019726,2]
[380132783,1755565855045,-1007.46,0.00019726,2]
[380132784,1755565855055,-610.17,0.00019726,2]
[380132785,1755565855064,-151.0,0.00019726,2]
[380132786,1755565855074,-151.0,0.00019726,2]
[380132787,1755565855083,-208.111543,0.00019726,2]
[380132788,1755565855092,-208.111549,0.00019726,2]
[380132789,1755565855102,-480.0,0.00019726,2]
[380132790,1755565855111,-1642.42,0.00019726,2]
[380132791,1755565855120,-151.0,0.00019726,2]
[380132792,1755565855129,-772.59,0.00019726,2]
[380132793,1755565855138,-1393.34,0.00019726,2]
[380132794,1755565855148,-199.69932036,0.00019726,2]
[380132795,1755565855157,-480.0,0.00019726,2]
[380132796,1755565855166,-359.273245,0.00019726,2]
[380132797,1755565855175,-359.273243,0.00019726,2]
[380132798,1755565855184,-480.0,0.00019726,2]
[380132799,1755565855194,-480.0,0.00019726,2]
[380132800,1755565855203,-480.0,0.00019726,2]
[380132801,1755565855213,-1084.95,0.00019726,2]
[380132802,1755565855222,-480.0,0.00019726,2]
[380132803,1755565855231,-151.0,0.00019726,2]
[380132804,1755565855241,-523.053354,0.00019726,2]
[380132805,1755565855250,-664.67,0.00019726,2]
[380132806,1755565855259,-523.053364,0.00019726,2]
[380132807,1755565855268,-610.84,0.00019726,2]
[380132808,1755565855279,-480.0,0.00019726,2]
[380132809,1755565855288,-480.0,0.00019726,2]
[380132810,1755565855298,-480.0,0.00019726,2]
[380132811,1755565855307,-480.0,0.00019726,2]
[380132812,1755565855316,-480.0,0.00019726,2]
[380132813,1755565855326,-320.86531,0.00019726,2]
[380132814,1755565855335,-2710.22,0.00019726,2]
[380132815,1755565855346,-320.865307,0.00019726,2]
[380132816,1755565855356,-515.59,0.00019726,2]
[380132817,1755565855368,-1991.28,0.00019726,2]
[380132818,1755565855378,-480.0,0.00019726,2]
[380132819,1755565855388,-181.76002,0.00019726,2]
[380132820,1755565855401,-1559.32,0.00019726,2]
[380132821,1755565855410,-181.760013,0.00019726,2]
[380132822,1755565855419,-856.6,0.00019726,2]
[380132823,1755565855430,-151.0,0.00019726,2]
[380132824,1755565855443,-449.56962186,0.00019726,2]
[380132825,1755565855452,-480.0,0.00019726,2]
[380132826,1755565855464,-480.0,0.00019726,2]
[380132827,1755565855475,-1475.9,0.00019726,2]
[380132828,1755565855484,-186.073184,0.00019726,2]
[380132829,1755565855495,-879.89,0.00019726,2]
[380132830,1755565855505,-186.073177,0.00019726,2]
[380132831,1755565855514,-480.0,0.00019726,2]
[380132832,1755565855524,-480.0,0.00019726,2]
[380132833,1755565855533,-480.0,0.00019726,2]
[380132834,1755565855543,-1244.34,0.00019726,2]
[380132835,1755565855552,-1781.78,0.00019726,2]
[380132836,1755565855561,-680.66,0.00019726,2]
[380132837,1755565855571,-480.0,0.00019726,2]
[380132838,1755565855580,-5158.14,0.00019726,2]
[380132839,1755565855590,-480.0,0.00019726,2]
[380132840,1755565855599,-480.0,0.00019726,2]
[380132841,1755565855609,-480.0,0.00019726,2]
[380132842,1755565855619,-480.0,0.00019726,2]
[380132843,1755565855629,-800.18,0.00019726,2]
[380132844,1755565855640,-480.0,0.00019726,2]
[380132845,1755565855649,-480.0,0.00019726,2]
[380132846,1755565855658,-480.0,0.00019726,2]
[380132847,1755565855668,-769.15,0.00019726,2]
[380132848,1755565855676,-480.0,0.00019726,2]
[380132849,1755565855685,-480.0,0.00019726,2]
[380132850,1755565855695,-480.0,0.00019726,2]
[380132851,1755565855704,-480.0,0.00019726,2]
[380132852,1755565855713,-5232.37,0.00019726,2]
[380132853,1755565855722,-480.0,0.00019726,2]
[380132854,1755565855731,-480.0,0.00019726,2]
[380132855,1755565855739,-480.0,0.00019726,2]
[380132856,1755565855749,-604.53,0.00019726,2]
[380132857,1755565855758,-706.02,0.00019726,2]
[380132858,1755565855767,-700.73,0.00019726,2]
[380132859,1755565855776,-480.0,0.00019726,2]
[380132860,1755565855785,-486.75,0.00019726,2]
[380132861,1755565855795,-480.0,0.00019726,2]
[380132862,1755565855805,-480.0,0.00019726,2]
[380132863,1755565855816,-680.85,0.00019726,2]
[380132864,1755565855824,-1868.25,0.00019726,2]
[380132865,1755565855834,-480.0,0.00019726,2]
[380132866,1755565855843,-480.0,0.00019726,2]
[380132867,1755565855853,-660.11,0.00019726,2]
[380132868,1755565855862,-1533.1,0.00019726,2]
[380132869,1755565855871,-726.99,0.00019726,2]
[380132870,1755565855880,-659.04,0.00019726,2]
[380132871,1755565855890,-480.0,0.00019726,2]
[380132872,1755565855899,-547.36,0.00019726,2]
[380132873,1755565855909,-547.36,0.00019726,2]
[380132874,1755565855919,-480.0,0.00019726,2]
[380132875,1755565855928,-480.0,0.00019726,2]
[380132876,1755565855938,-480.0,0.00019726,2]
[380132877,1755565855947,-809.73,0.00019726,2]
[380132878,1755565855958,-487.21,0.00019726,2]
[380132879,1755565855967,-480.0,0.00019726,2]
[380132880,1755565855977,-480.0,0.00019726,2]
[380132881,1755565855986,-1688.88,0.00019726,2]
[380132882,1755565855997,-480.0,0.00019726,2]
[380132883,1755565856007,-747.0,0.00019743,2]
[380132884,1755565856016,-175.0,0.00019744,2]
[380132885,1755565856026,-500.0,0.00019773,2]
[380132886,1755565856036,-500.0,0.00019773,2]
[380132887,1755565856047,-221.54228483,0.00019773,2]
[380132888,1755565856056,-185.47411264,0.00019773,2]
[380132889,1755565856066,-500.78453065,0.00019773,2]
[380132890,1755565856077,-500.0,0.00019773,2]
[380132891,1755565856087,-500.0,0.00019773,2]
[380132892,1755565856100,-568.01389908,0.00019773,2]
[380132893,1755565856109,-505.54523782,0.00019773,2]
[380132894,1755565856118,-500.12747643,0.00019773,2]
[380132895,1755565856127,-158.65429511,0.00019773,2]
[380132896,1755565856137,-500.0,0.00019773,2]
[380132897,1755565856146,-500.0,0.00019773,2]
[380132898,1755565856155,-525.7413534,0.00019773,2]
[380132899,1755565856165,-500.0,0.00019773,2]
[380132900,1755565856175,-500.0,0.00019773,2]
[380132901,1755565856185,-500.0,0.00019773,2]
[380132902,1755565856195,-500.0,0.00019773,2]
[380132903,1755565856204,-500.0,0.00019773,2]
[380132904,1755565856213,-500.45548213,0.00019773,2]
[380132905,1755565856223,-500.0,0.00019773,2]
[380132906,1755565856233,-500.0,0.00019773,2]
[380132907,1755565856243,-500.0,0.00019773,2]
[380132908,1755565856253,-500.0,0.00019773,2]
[380132909,1755565856262,-500.0,0.00019773,2]
[380132910,1755565856271,-500.0,0.00019773,2]
[380132911,1755565856280,-500.0,0.00019773,2]
[380132912,1755565856289,-500.0,0.00019773,2]
[380132913,1755565856300,-501.391982,0.00019773,2]
[380132914,1755565856310,-173.74465953,0.00019773,2]
[380132915,1755565856319,-154.60144296,0.00019773,2]
[380132916,1755565856328,-500.0,0.00019773,2]
[380132917,1755565856338,-622.24374581,0.00019773,2]
[380132918,1755565856347,-500.0,0.00019773,2]
[380132919,1755565856356,-500.0,0.00019773,2]
[380132920,1755565856365,-500.0,0.00019773,2]
[380132921,1755565856375,-500.0,0.00019773,2]
[380132922,1755565856384,-195.74148035,0.00019773,2]
[380132923,1755565856395,-500.0,0.00019773,2]
[380132924,1755565856406,-500.0,0.00019773,2]
[380132925,1755565856418,-500.0,0.00019773,2]
[380132926,1755565856427,-500.0,0.00019773,2]
[380132927,1755565856438,-500.0,0.00019773,2]
[380132928,1755565856447,-500.0,0.00019773,2]
[380132929,1755565856456,-500.0,0.00019773,2]
[380132930,1755565856465,-162.47279025,0.00019773,2]
[380132931,1755565856476,-500.0,0.00019773,2]
[380132932,1755565856485,-500.0,0.00019773,2]
[380132933,1755565856494,-500.0,0.00019773,2]
[380132934,1755565856503,-500.0,0.00019773,2]
[380132935,1755565856514,-500.0,0.00019773,2]
[380132936,1755565856525,-500.0,0.00019773,2]
[380132937,1755565856536,-500.0,0.00019773,2]
[380132938,1755565856546,-151.0,0.000198,2]
[380132939,1755565856555,-800.0,0.00019803,2]
[380132940,1755565856565,-747.0,0.00019821,2]
[380132941,1755565856574,-179.73040439,0.0001983,2]
[380132942,1755565856583,-295.270212,0.00019863,2]
[380132943,1755565856593,-800.0,0.00019887,2]
[380132944,1755565856603,-175.0,0.00019893,2]
[380132945,1755565856612,-175.0,0.00019896,2]
[380132946,1755565856702,-151.0,0.000199,2]
[380132947,1755565856712,-151.0,0.000199,2]
[380132948,1755565856722,-151.0,0.000199,2]
[380132949,1755565856731,-175.57478707,0.000199,2]
[380132950,1755565856740,-5061.41767697,0.000199,2]
[380132951,1755565856750,-747.0,0.00019917,2]
[380132952,1755565856759,-336.0,0.00019919,2]
[380132953,1755565856768,-800.0,0.00019919,2]
[380132954,1755565856777,-800.0,0.00019928,2]
[380132955,1755565856786,-2895.54,0.00019952,2]
[380132956,1755565856795,-800.0,0.00019952,2]
[380132957,1755565856805,-161.0,0.00019953,2]
[380132958,1755565856814,-159.38048776,0.00019953,2]
[380132959,1755565856823,-155.0,0.00019953,2]
[380132960,1755565856832,-155.0,0.00019953,2]
[380132961,1755565856843,-179.86871889,0.00019953,2]
[380132962,1755565856852,-326.0,0.00019953,2]
[380132963,1755565856862,-326.0,0.00019953,2]
[380132964,1755565856871,-326.0,0.00019953,2]
[380132965,1755565856880,-326.0,0.00019953,2]
[380132966,1755565856890,-326.0,0.00019953,2]
[380132967,1755565856899,-326.0,0.00019953,2]
[380132968,1755565856909,-326.0,0.00019953,2]
[380132969,1755565856919,-326.0,0.00019953,2]
[380132970,1755565856928,-326.0,0.00019953,2]
[380132971,1755565856937,-326.0,0.00019953,2]
[380132972,1755565856947,-326.0,0.00019953,2]
[380132973,1755565856957,-326.0,0.00019953,2]
[380132974,1755565856967,-326.0,0.00019953,2]
[380132975,1755565856977,-326.0,0.00019953,2]
[380132976,1755565856988,-326.0,0.00019953,2]
[380132977,1755565856998,-326.0,0.00019953,2]
[380132978,1755565857008,-326.0,0.00019953,2]
[380132979,1755565857018,-86.29083231,0.00019953,2]
[380132980,1755565857199,-239.70916769,0.00019953,2]
[380132981,1755565857208,-326.0,0.00019953,2]
[380132982,1755565857218,-326.0,0.00019953,2]
[380132983,1755565857227,-326.0,0.00019953,2]
[380132984,1755565857236,-326.0,0.00019953,2]
[380132985,1755565857246,-292.25114513,0.00019953,2]
[380132986,1755565857383,-480.0,0.00019178,2]
[380132987,1755565857394,-480.0,0.00019178,2]
[380132988,1755565857406,-480.0,0.00019178,2]
[380132989,1755565857416,-192.61710214,0.00019452,2]
[380132990,1755565857761,-421.45325621,0.00019178,2]
[380132991,1755565857771,-500.0,0.00019178,2]
[380132992,1755565857780,-28.67674379,0.00019178,2]
[380132993,1755565857814,-471.32325621,0.00019178,2]
[380132994,1755565857825,-480.0,0.00019178,2]
[380132995,1755565857834,-480.0,0.00019178,2]
[380132996,1755565857843,-293.8392635,0.000192,2]
[380132997,1755565857853,-580.787823,0.000192,2]
[380132998,1755565857863,-360.5682061,0.000192,2]
[380132999,1755565857874,-394.66662242,0.00019452,2]
[380133000,1755565857884,-33.74885487,0.00019953,2]
[380133001,1755565857893,-326.0,0.00019953,2]
[380133002,1755565857903,-326.0,0.00019953,2]
[380133003,1755565857914,-326.0,0.00019953,2]
[380133004,1755565857924,-326.0,0.00019953,2]
[380133005,1755565857934,-326.0,0.00019953,2]
[380133006,1755565857943,-326.0,0.00019953,2]
[380133007,1755565857953,-326.0,0.00019953,2]
[380133008,1755565857963,-326.0,0.00019953,2]
[380133009,1755565857973,-326.0,0.00019953,2]
[380133010,1755565857983,-326.0,0.00019953,2]
[380133011,1755565858074,-326.0,0.00019953,2]
[380133012,1755565858084,-326.0,0.00019953,2]
[380133013,1755565858094,-326.0,0.00019953,2]
[380133014,1755565858103,-326.0,0.00019953,2]
[380133015,1755565858112,-326.0,0.00019953,2]
[380133016,1755565858122,-326.0,0.00019953,2]
[380133017,1755565858131,-326.0,0.00019953,2]
[380133018,1755565858140,-326.0,0.00019953,2]
[380133019,1755565858150,-326.0,0.00019953,2]
[380133020,1755565858159,-326.0,0.00019953,2]
[380133021,1755565858170,-326.0,0.00019953,2]
[380133022,1755565858179,-326.0,0.00019953,2]
[380133023,1755565858188,-343.87080955,0.00019953,2]
[380133024,1755565858198,-151.0,0.00019953,2]
[380133025,1755565858207,-151.0,0.00019953,2]
[380133026,1755565858217,-151.0,0.00019953,2]
[380133027,1755565858226,-558.79389277,0.00019973,2]
[380133028,1755565858235,-502.29715531,0.00019973,2]
[380133029,1755565858246,-500.0,0.00019973,2]
[380133030,1755565858256,-500.0,0.00019973,2]
[380133031,1755565858266,-500.0,0.00019973,2]
[380133032,1755565858276,-151.0,0.00019973,2]
[380133033,1755565858285,-186.962021,0.00019973,2]
[380133034,1755565858295,-186.962021,0.00019973,2]
[380133035,1755565858305,-152.193111,0.00019973,2]
[380133036,1755565858315,-151.0,0.00019973,2]
[380133037,1755565858324,-151.0,0.00019973,2]
[380133038,1755565858334,-151.0,0.00019973,2]
[380133039,1755565858344,-197.819997,0.00019973,2]
[380133040,1755565858354,-197.819999,0.00019973,2]
[380133041,1755565858364,-800.0,0.00019983,2]
[380133042,1755565858373,-168.0,0.00019987,2]
[380133043,1755565858382,-2895.54,0.00019999,2]
[380133044,1755565858393,-2895.54,0.00019999,2]
[380133045,1755565858404,-2895.54,0.00019999,2]
[380133046,1755565858413,-2895.54,0.00019999,2]
[380133047,1755565858423,-2895.54,0.00019999,2]
[380133048,1755565858432,-2895.73920743,0.00019999,2]
[380133049,1755565858442,-500.0,0.0002,2]
[380133050,1755565858452,-151.0,0.0002,2]
[380133051,1755565858461,-151.0,0.0002,2]
[380133052,1755565858472,-151.0,0.0002,2]
[380133053,1755565858481,-151.0,0.0002,2]
[380133054,1755565858490,-480.0,0.0002,2]
[380133055,1755565858499,-266.70175392,0.0002,2]
[380133056,1755565858508,-586.18039312,0.0002,2]
[380133057,1755565858518,-480.0,0.0002,2]
[380133058,1755565858527,-186.962021,0.0002,2]
[380133059,1755565858537,-186.962021,0.0002,2]
[380133060,1755565858546,-186.962021,0.0002,2]
[380133061,1755565858555,-186.962021,0.0002,2]
[380133062,1755565858564,-480.0,0.0002,2]
[380133063,1755565858574,-151.0,0.0002,2]
[380133064,1755565858583,-151.0,0.0002,2]
[380133065,1755565858593,-480.0,0.0002,2]
[380133066,1755565858602,-480.0,0.0002,2]
[380133067,1755565858611,-496.65,0.0002,2]
[380133068,1755565858622,-480.0,0.0002,2]
[380133069,1755565858631,-480.0,0.0002,2]
[380133070,1755565858640,-480.0,0.0002,2]
[380133071,1755565858650,-480.0,0.0002,2]
[380133072,1755565858659,-486.7498933,0.0002,2]
[380133073,1755565858669,-32.9801355,0.0002,2]
[380133077,1755566221673,151.0,0.00028767,120]
[380133094,1755566411360,205.369442,0.00013699,2]
[380133096,1755566561455,1027.1,0.0002876,120]
[380133097,1755566662217,168.0,0.00018591,2]
[380133098,1755566671517,168.0,0.00018571,2]
[380133100,1755566775257,2590.95,0.00028767,120]
[380133101,1755566832114,-168.0,0.00018785,2]
[380133102,1755566832136,-168.0,0.00018812,2]
[380133103,1755566832159,-233.71031407,0.00018842,2]
[380133104,1755566858086,1750.0,0.00028,120]
[380133106,1755567017225,181.24630208,0.0001861,2]
[380133107,1755567024052,1000.0,0.00028074,120]
[380133108,1755567031406,1000.0,0.00028767,120]
[380133122,1755567032126,-1259.52766182,0.00018842,2]
[380133124,1755567032138,-306.76202411,0.00018842,2]
[380133126,1755567032147,-211.0,0.00018898,2]
[380133128,1755567032156,-4800.10000001,0.000189,2]
[380133130,1755567032166,-1200.0,0.00018976,2]
[380133132,1755567032175,-300.0,0.00018977,2]
[380133134,1755567032184,-300.0,0.00018977,2]
[380133136,1755567032194,-300.0,0.00018977,2]
[380133138,1755567032203,-300.0,0.00018977,2]
[380133140,1755567032212,-4296.89159991,0.00018978,2]
[380133142,1755567032221,-168.0,0.00019038,2]
[380133144,1755567032234,-500.0,0.00019077,2]
[380133147,1755567032244,-791.12326333,0.00019078,2]
[380133150,1755567032253,-8343.66401779,0.00019078,2]
[380133152,1755567032262,-1000.0,0.00019078,2]
[380133154,1755567032271,-2626.16722414,0.00019078,2]
[380133157,1755567032282,-2302.14983129,0.00019078,2]
[380133159,1755567032293,-12984.39008592,0.00019078,2]
[380133161,1755567032302,-4996.29530714,0.00019078,2]
[380133163,1755567032314,-2718.54433419,0.00019078,2]
[380133165,1755567032325,-2340.28697468,0.00019078,2]
[380133425,1755567038161,-1071.305493,0.00019078,2]
[380133428,1755567038172,-2108.39254201,0.00019078,2]
[380133430,1755567038183,-1072.02397009,0.00019078,2]
[380133431,1755567038194,-683.88842277,0.00019078,2]
[380133432,1755567038205,-908.23592004,0.00019078,2]
[380133438,1755567038261,-800.31220347,0.00019078,2]
[380133441,1755567038272,-1398.46494816,0.00019078,2]